Cogmind - Beta 16 --- EXPLORER MODE // 2026.01.01 @ 10:22:13 Player: K.K.Y. Result: Destroyed by DZ-04M(R) with Subdweller Beam Cannon Performance ------------- Evolutions (0) 0 Regions Visited (3) 600 Robots Destroyed (33) 165 Value Destroyed (653) 653 Prototype IDs (17) 340 Alien Tech Used (0) 0 Bonus (54) 54 TOTAL SCORE: 1812 Bonus ------- Follower Combat Kills 164 Friendly Fire -110 Cogmind --------- Core Integrity 0/250 Matter 228/300 Energy 38/100 System Corruption 5% Temperature Warning (311) Movement Core (1450) Ox28 Location -10/Subcaves Parts ------- > --- POWER (1) -------- (None) > --- PROPULSION (2) --- (None) > --- UTILITY (3) ------ Huge Storage Unit Structural Scanner Sensor Array > --- WEAPON (2) ------- Beamcaster > --- INVENTORY (25) --- Light Angular Momentum Engine Light Treads Airjet Flightbrick Improved Heat Sink Improved Heat Sink Improved Heat Sink Improved Heat Sink Medium Storage Unit Structural Scanner Machine Analyzer Advanced Visual Processing Unit Improved Terrain Scanner Improved Terrain Scanner Advanced Targeting Computer Actuator Array Core Shielding Riot Gun Slug Cannon Mining Laser Multitool Peak State ------------ > --- POWER ------------ Makeshift Power Source > --- PROPULSION ------- Light Treads > --- UTILITY ---------- Huge Storage Unit Structural Scanner Sensor Array > --- WEAPON ----------- EM Pulse Cannon Flak Cannon > --- INVENTORY -------- Light Angular Momentum Engine Light Treads Airjet Flightbrick Improved Heat Sink Improved Heat Sink Improved Heat Sink Improved Heat Sink Medium Storage Unit Structural Scanner Machine Analyzer Advanced Visual Processing Unit Improved Terrain Scanner Improved Terrain Scanner Advanced Targeting Computer Actuator Array Core Shielding Riot Gun Beamcaster Slug Cannon Mining Laser Multitool [Rating: 23] Favorites ----------- Power Ion Engine Engine Ion Engine Propulsion Light Treads Treads Light Treads Utility Sensor Array Device Sensor Array Storage Huge Storage Unit Weapon Flak Cannon Energy Gun Medium Laser Energy Cannon EM Pulse Cannon Ballistic Cannon Flak Cannon Special Weapon Mining Laser Build | -11 -10 -10 -10 ------- Run | Yrd Mat Min Sub Slots Evolved 1 | . 1 . . Power . | . . . . Propulsion . | . . . . Utility 1 | . 1 . . Weapon . | . . . . Parts Attached 18 | 7 3 4 4 Power 3 | 1 . 1 1 Engine 3 | 1 . 1 1 Core . | . . . . Reactor . | . . . . Propulsion 2 | 2 . . . Treads 2 | 2 . . . Leg . | . . . . Wheel . | . . . . Hover . | . . . . Flight . | . . . . Utility 4 | 2 1 1 . Device 2 | 1 1 . . Storage 2 | 1 . 1 . Processor . | . . . . Hackware . | . . . . Protection . | . . . . Artifact . | . . . . Weapon 9 | 2 2 2 3 Energy Gun 3 | 2 . . 1 Energy Cannon 2 | . . 1 1 Ballistic Gun . | . . . . Ballistic Cannon 3 | . 2 1 . Launcher . | . . . . Special Weapon 1 | . . . 1 Impact Weapon . | . . . . Slashing Weapon . | . . . . Piercing Weapon . | . . . . Special Melee Weapon . | . . . . Unidentified Prototypes . | . . . . Parts Lost 5 | . . . 5 Power 1 | . . . 1 Propulsion 2 | . . . 2 Utility . | . . . . Weapon 2 | . . . 2 Highest Loss Streak 3 | . . . 3 To Critical Strikes . | . . . . Average Backups 15 | 2 6 12 19 Power . | . . . 1 Propulsion 1 | . . 1 2 Utility 9 | 1 4 8 12 Weapon 2 | . 2 2 3 Tool/Special . | . . . . Unused Backups 22 | . 1 2 19 Power 1 | . . . 1 Propulsion 3 | . . . 3 Utility 12 | . . . 12 Weapon 5 | . 1 2 2 Tool/Special 1 | . . . 1 Average Slot Usage (%) 96 | . 97 99 95 Engine 11 | . 12 12 11 Treads 22 | . 25 25 20 Device 24 | . 24 25 25 Storage 12 | . 12 12 12 Energy Gun 2 | . 11 . . Energy Cannon 8 | . . 6 11 Ballistic Cannon 12 | . 10 17 11 Peak Build Rating 23 | 7 9 15 23 Average Rating 14 | 5 8 12 17 On Entrance 7 | . 7 9 15 Avg Prop Armor Cover (%) . | . . . . Naked Turns . | . . . . Heaviest Build 99 | 18 21 99 99 Greatest Support 40 | 40 40 40 40 Greatest Overweight (x) 4 | 3 . 2 4 Average Overweight (x) 1 | . . . 2 Largest Inventory Capacity 25 | 10 10 25 25 Average Capacity 20 | 9 10 18 25 Most Carried 25 | 7 9 16 25 Average Carried 15 | 2 6 12 20 Final Capacity 25 | 10 10 25 25 Final Carried 24 | 3 9 14 24 Class Distribution -------------------- 100% | Hacker-Mutant Dominant Class ---------------- Hacker-Mutant | -10/Materials Hacker-Mutant | -10/Mines Hacker-Mutant | -10/Subcaves Resources | -11 -10 -10 -10 ----------- Run | Yrd Mat Min Sub Matter Collected 954 | 216 151 106 481 Remotely . | . . . . Salvage Created 974 | 79 563 . 332 Parts 58 | 5 34 . 19 Haulers Intercepted 2 | . 2 . . Recyclers Shooed 2 | . 2 . . Parts Field Recycled . | . . . . Retrieved Matter . | . . . . Parts Self-Destructed . | . . . . Prevented . | . . . . Parts Restored . | . . . . Kills | -11 -10 -10 -10 ------- Run | Yrd Mat Min Sub Combat Hostiles Destroyed 18 | . 8 . 10 Guns 6 | . 6 . . Cannons 11 | . 2 . 9 AOE 1 | . . . 1 Classes Destroyed 11 | 2 6 . 3 Worker 3 | . 3 . . Builder 1 | . 1 . . Tunneler 2 | 1 1 . . Hauler 2 | . 2 . . Recycler 2 | 1 1 . . Turret 2 | . . . 2 Watcher 3 | . 3 . . Swarmer 7 | . 4 . 3 Grunt 7 | . 4 . 3 Artisan 1 | . . . 1 Subdweller 4 | . . . 4 Best Kill Streak 5 | 2 4 . 5 Combat Bots Only 3 | . 2 . 3 Max Kills in Single Turn 2 | 1 2 . 1 Gunslinging 1 | . 1 . . Exploded 1 | . . . 1 Melee . | . . . . Uniques/NPCs Destroyed . | . . . . Combat | -11 -10 -10 -10 -------- Run | Yrd Mat Min Sub Hostile Shots Fired 166 | . 30 4 132 Missed 61 | . 10 3 48 Hits 105 | . 20 1 84 Projectile 105 | . 20 1 84 Critical Strikes 2 | . . . 2 Damage Taken 963 | . 127 6 830 Core 251 | . 35 . 216 Absorbed by Shields . | . . . . Ignored by Resistances 558 | . 86 4 468 Core Remaining (%) 100 | 100 . . . Volleys Fired 92 | 7 41 1 43 Largest 2 | 2 2 2 2 Hottest 163 | 100 100 60 163 Shots Fired 180 | 14 83 5 78 Gun 87 | 14 70 . 3 Cannon 92 | . 13 5 74 Launcher . | . . . . Special 1 | . . . 1 Kinetic 58 | . 13 5 40 Thermal 88 | 14 70 . 4 Explosive . | . . . . Electromagnetic 34 | . . . 34 Robot Hit Streak 35 | 12 25 2 35 Robot Miss Streak 3 | . 2 1 3 Penetration Max . | . . . . Secondary Targets 3 | . 3 . . Max Gunslinging Chain 1 | . 1 . . Shots Hit Robots 128 | 12 65 2 49 Core Hits 65 | 3 25 . 37 Critical Kills . | . . . . Critical Parts Destroyed . | . . . . Critical Strikes 5 | 1 4 . . Burn 4 | 1 3 . . Blast 1 | . 1 . . Melee Attacks . | . . . . Impact . | . . . . Slashing . | . . . . Piercing . | . . . . Sneak Attacks . | . . . . Combat Hostiles . | . . . . Follow-up Attacks . | . . . . Damage Inflicted 2189 | 152 866 37 1134 Guns 920 | 152 726 . 42 Cannons 1187 | . 140 37 1010 Explosions 82 | . . . 82 Melee . | . . . . Ramming . | . . . . Kinetic 728 | . 140 37 551 Thermal 1002 | 152 726 . 124 Explosive . | . . . . Electromagnetic 459 | . . . 459 Impact . | . . . . Slashing . | . . . . Piercing . | . . . . Highest Corruption 5 | . 5 5 5 Average Corruption 4 | . 2 5 5 Corruption Purged . | . . . . Corruption Blocked . | . . . . Effects 144 | . 10 35 99 Message Errors 34 | . 2 9 23 Matter Fused 47 | . 4 9 34 Heat Flow Errors 11 | . 1 4 6 Energy Discharges 12 | . 1 4 7 Parts Fused 1 | . . . 1 Data Loss (minor) 19 | . 1 5 13 Data Loss (major) 7 | . . 1 6 Misfires 7 | . 1 3 3 Alerts 5 | . . . 5 Weapon Failures 1 | . . . 1 Overload Shots . | . . . . Overflow Damage 31 | . . . 31 Projectiles 12 | . . . 12 Explosions 19 | . . . 19 Melee . | . . . . Knockbacks 7 | . 1 1 5 Impact . | . . . . Kinetic 7 | . 1 1 5 Secondary . | . . . . Self-Inflicted Damage 15 | . . . 15 Shots 1 | . . . 1 Rammed . | . . . . Targets Rammed . | . . . . Kicked . | . . . . Crushed . | . . . . Highest Temperature 365 | 234 365 261 317 Average Temperature 96 | 104 98 107 78 Received Heat Transfer 894 | . 84 . 810 Effects 1 | . 1 . . Energy Bleed 1 | . 1 . . Siege Activations . | . . . . Martial Activations . | . . . . Shielding Activations . | . . . . Robots Disrupted . | . . . . Combat Hostiles . | . . . . Robots Corrupted . | . . . . Combat Hostiles . | . . . . Parts Fried . | . . . . Impact Corruptions . | . . . . Robots Melted . | . . . . Combat Hostiles . | . . . . Parts Melted 7 | 1 6 . . Heat Transferred 3110 | 518 2368 . 224 Parts Sabotaged . | . . . . Parts Stolen . | . . . . Parts Stripped . | . . . . Power Chain Reactions 1 | . . . 1 Alert | -11 -10 -10 -10 ------- Run | Yrd Mat Min Sub Maximum Alert Level . | . . . . Low Security (%) 100 | 100 100 100 . Level 1 . | . . . . Level 2 . | . . . . Level 3 . | . . . . Level 4 . | . . . . Level 5 . | . . . . High Security . | . . . . Max Security . | . . . . Peak Influence 67 | 10 67 40 . Initial . | . . . . Average 4 | 1 8 1 . Influence Increases 715 | 10 270 55 380 Destroy 0b10 Robot/C 360 | . 160 40 160 Destroy 0b10 Robot/NC 65 | 10 55 . . Destroy Leader 70 | . 50 10 10 Allied During Kill 5 | . . 5 . Successful Hack 5 | . 5 . . Lose Combat Pursuer 210 | . . . 210 Influence Decreases 715 | 10 270 55 380 Time Decay 715 | 10 270 55 380 Squads Dispatched 1 | . . 1 . Investigation 1 | . . 1 . Extermination . | . . . . Reinforcement . | . . . . Assault . | . . . . Garrison . | . . . . Intercept . | . . . . Searches Triggered . | . . . . Construction Impeded . | . . . . Haulers Reinforced . | . . . . Active Scanning Responses . | . . . . Cargo Convoy Interrupts . | . . . . Stealth | -11 -10 -10 -10 --------- Run | Yrd Mat Min Sub Distress Signals 1 | . 1 . . Communications Jammed . | . . . . Distress Signals . | . . . . Times Spotted 43 | . 13 2 28 Peak Tracking Total 6 | . 3 2 6 Tactical Retreats 2 | . . . 2 Traps | -11 -10 -10 -10 ------- Run | Yrd Mat Min Sub Traps Triggered 7 | . 5 . 2 Indirectly . | . . . . Trap Hack Attempts . | . . . . Triggered . | . . . . Disarmed . | . . . . Reprogrammed . | . . . . Reused . | . . . . Traps Extracted . | . . . . Installed . | . . . . Triggered . | . . . . Machines | -11 -10 -10 -10 ---------- Run | Yrd Mat Min Sub Machines Disabled 1 | . . . 1 Max in Single Turn 1 | . . . 1 Machines Repaired . | . . . . Machines Dismantled . | . . . . Machines Sabotaged . | . . . . Overloaded Fab Kills . | . . . . Hacking | -11 -10 -10 -10 --------- Run | Yrd Mat Min Sub Machines Accessed 4 | . 2 1 1 Terminals 2 | . 2 . . Fabricators . | . . . . Repair Stations . | . . . . Recycling Units . | . . . . Scanalyzers . | . . . . Garrison Access . | . . . . Total Hacks 11 | . 9 1 1 Successful 7 | . 5 1 1 Failed 4 | . 4 . . Catastrophic . | . . . . Database Lockouts . | . . . . Manual 9 | . 9 . . Terminals 9 | . 9 . . Fabricators . | . . . . Repair Stations . | . . . . Recycling Units . | . . . . Scanalyzers . | . . . . Garrison Access . | . . . . Terminal Hacks 5 | . 3 1 1 Prototype ID Bank 3 | . 3 . . Open Door 1 | . . 1 . Proto ID Catalog 1 | . . . 1 Fabricator Hacks . | . . . . Repair Station Hacks . | . . . . Recycling Unit Hacks . | . . . . Scanalyzer . | . . . . Garrison Access Hacks . | . . . . Unauthorized Hacks 2 | . 2 . . Terminals 2 | . 2 . . Botnet 2 | . 2 . . Fabricators . | . . . . Repair Stations . | . . . . Recycling Units . | . . . . Scanalyzers . | . . . . Garrison Access . | . . . . Data Cores Recovered . | . . . . Used . | . . . . Hacking Detections 2 | . 2 . . Full Trace Events . | . . . . Feedback Events . | . . . . Feedback Blocked . | . . . . Robot Schematics Acquired . | . . . . Robots Built . | . . . . Authchips . | . . . . Time . | . . . . Total Robot Build Rating . | . . . . Part Schematics Acquired . | . . . . Parts Built . | . . . . Authchips . | . . . . Time . | . . . . Total Part Build Rating . | . . . . Part Studies Acquired . | . . . . Parts Repaired . | . . . . Time . | . . . . Parts Recycled . | . . . . Recycled Matter . | . . . . Retrieved Matter . | . . . . Retrieved Components . | . . . . Parts Scanalyzed . | . . . . Part Schematics Acquired . | . . . . Parts Damaged . | . . . . Bothacking | -11 -10 -10 -10 ------------ Run | Yrd Mat Min Sub Used RIF Installer . | . . . . Robots Hacked . | . . . . Non-combat . | . . . . Combat . | . . . . Robot Hacks Applied . | . . . . Relay Couplers Released . | . . . . Fabnet Peak Effective % . | . . . . Robots Rewired . | . . . . Allies Hacked . | . . . . Hacks Repelled . | . . . . Allies | -11 -10 -10 -10 -------- Run | Yrd Mat Min Sub Total Allies 5 | . . 5 . Largest Group 5 | . . 5 5 Highest-Rated Group 82 | . . 78 82 Highest-Rated Ally 31 | . . 31 31 Total Orders . | . . . . Ally Attacks 46 | . . 6 40 Total Damage 594 | . . 79 515 Kills 7 | . . 2 5 Allies Corrupted . | . . . . Allies Melted . | . . . . Intel | -11 -10 -10 -10 ------- Run | Yrd Mat Min Sub Active Infowar (turns) 6582 | 69 1207 1392 3914 Sensors 6582 | 69 1207 1392 3914 Structural 6457 | . 1151 1392 3914 Robot Analysis Total . | . . . . Derelict Logs Recovered 2 | . . 1 1 Drone Launches . | . . . . Drone Recoveries . | . . . . Exploration | -11 -10 -10 -10 ------------- Run | Yrd Mat Min Sub Turns Passed 6612 | 99 1207 1392 3914 Spaces Moved 2265 | 48 662 626 929 Core 21 | 21 . . . Treads 2244 | 27 662 626 929 Legs . | . . . . Wheels . | . . . . Hover . | . . . . Flight . | . . . . Fastest Speed 50 | 50 160 160 320 Average Speed 259 | 127 160 217 365 Slowest Speed 480 | 200 160 320 480 Overloaded Moves . | . . . . Propulsion Burnouts . | . . . . Robots Hopped . | . . . . Potential Cave-ins . | . . . . Cave-ins Triggered . | . . . . Exploration Rate (%) 64 | 3 99 99 57 Regions Visited 3 Branch Regions 2 Pre-discovered Areas . | . . . . Known Exits Taken 3 | 1 1 1 . Unknown Exits Taken . | . . . . Scrap Searched 9 | . . 2 7 Spaces Dug . | . . . . Terrain Destroyed 2 | . . . 2 Melee . | . . . . Projectile . | . . . . AOE 2 | . . . 2 Terrain Rammed . | . . . . Walls Destroyed . | . . . . Machines Disabled . | . . . . Actions | -11 -10 -10 -10 --------- Run | Yrd Mat Min Sub Total 2821 | 72 730 656 1363 Wait 394 | . 10 11 373 Move 2262 | 47 661 625 929 Hop . | . . . . Pick Up 39 | 10 10 9 10 Fast Attach 3 | 1 . 2 . Attach 11 | 6 3 . 2 Detach 3 | . 2 . 1 Swap 5 | . . 2 3 Drop 12 | 1 3 6 2 Fire 92 | 7 41 1 43 Melee . | . . . . Ram . | . . . . Kick . | . . . . Crush . | . . . . Escape Stasis . | . . . . Rewire . | . . . . Trap . | . . . . Miscellaneous . | . . . . Route ------- -11/Scrapyard -10/Materials (discovered 5 exits: *Mat x3 / *Min / *Sub) -10/Mines (discovered 4 exits: *Mat x2 / *Exi / *Sub) -10/Subcaves (discovered 2 exits: *Mat / *Rec) History --------- Turn | Location | Event 18 | -11/Scrapyard | Identified exit to Materials 18 | -11/Scrapyard | Discovered exit to Materials (range 15) 100 | -11/Scrapyard | Entered Materials 100 | -10/Materials | Evolved 1 slot: Utility x1 298 | -10/Materials | Identified exit to Mines 298 | -10/Materials | Discovered exit to Mines (range 12) 310 | -10/Materials | Build established: Hacker-Mutant 701 | -10/Materials | Identified exit to Materials 701 | -10/Materials | Discovered exit to Materials (range 15) 709 | -10/Materials | Identified exit to Subcaves 709 | -10/Materials | Discovered exit to Subcaves (range 8) 860 | -10/Materials | Discovered exit to Materials (range 15) 1039 | -10/Materials | Discovered exit to Materials (range 15) 1307 | -10/Materials | Entered Mines 1344 | -10/Mines | Assisted by bots powering up and referring to "LRC-V3" 1380 | -10/Mines | Received a Rocket Launcher from a helpful Derelict 1443 | -10/Mines | Discovered exit to Materials (range 8) 1769 | -10/Mines | Deemed a non-threat by the Exiles lab entrance 1769 | -10/Mines | Identified exit to Exiles 1769 | -10/Mines | Discovered exit to Exiles (range 5) 1935 | -10/Mines | Learned 2 Materials zone layouts 1941 | -10/Mines | Met a Derelict shopkeep closing up shop 2246 | -10/Mines | Discovered exit to Materials (range 8) 2664 | -10/Mines | Discovered exit to Subcaves (range 7) 2699 | -10/Mines | Entered Subcaves 2699 | -10/Subcaves | Accompanied by 5 allies 2704 | -10/Subcaves | Led the pair of lost Derelicts to an unsafe place 2963 | -10/Subcaves | Disturbed a concealed Subdweller 5184 | -10/Subcaves | Identified exit to Materials 5184 | -10/Subcaves | Discovered exit to Materials (range 3) 5213 | -10/Subcaves | Identified exit to Recycling 5213 | -10/Subcaves | Discovered exit to Recycling (range 15) 5225 | -10/Subcaves | Core integrity fell below 50% 5442 | -10/Subcaves | Learned 4 Materials zone layouts 5605 | -10/Subcaves | Visited 4L-MR0's lab 5648 | -10/Subcaves | Found Flightbrick 6596 | -10/Subcaves | Core integrity fell below 20% 6613 | -10/Subcaves | Destroyed by DZ-04M(R) with Subdweller Beam Cannon Last Messages --------------- 06334_ System corrupted: EM Pulse Cannon fused. 06352_ System corrupted: Substantial component data lost. 06401_ System corrupted: Matter fused (-7). 06417_ System corrupted: Energy discharge (-42). 06460_ Acquired 37 matter. 06468_ System corrupted: Matter fused (-10). 06510_ System corrupted: Component data lost. 06537_ 7W-GGA(R) knocked back. 06539_ EM Pulse Cannon destroyed. 06540_ 7W-GGA(R) knocked back. 06540_ 7W-GGA(R) destroyed. 06552_ H07FO |AQD/#1PKC